[Event "SixDays Budapest GM-B May 2024"]
[Site "Budapest"]
[Date "2024.05.17"]
[Round "3.1"]
[White "Borgaonkar Akshay"]
[Black "Jinan Jomon"]
[Result "0-1"]
[ECO "B90"]
[WhiteElo "2374"]
[BlackElo "2380"]
[Annotator "TA"]
[PlyCount "66"]
[EventDate "2024.05.15"]
[EventType "tourn"]
[EventCountry "HUN"]
[SourceTitle "playchess.com"]
[Source "ChessBase"]
[SourceQuality "1"]
[TimeControl "40/5400+30:1800+30"]

{[%evp 9,66,8,18,8,0,-35,-46,-26,-14,0,-8,-23,-30,-26,-33,-200,-188,-160,-187,-212,-217,-216,-222,-374,-382,-510,-506,-570,-551,-577,-580,-673,-658,-609,-541,-631,-573,-686,-531,-701,-690,-688,-650,-837,-665,-733,-732,-1247,-1264,-1120,-1156,-1054,-1020,-977,-772,-1200,-616,-971,-954]} 1. e4 {[%emt 0:00:07]} c5 {[%emt 0:00:40]} 2. Nf3 {[%emt 0:00:15]} d6 {[%emt 0:00:07]} 3. d4 {[%emt 0:00:13]} cxd4 {[%emt 0:00:08]} 4. Nxd4 {[%emt 0:00:09]} Nf6 {[%emt 0:00:08][%cal Bg8f6,Bf6g4,Bg4e5][%mdl 32]} 5. Nc3 {[%emt 0:00:11]} a6 {[%emt 0:00:09]} 6. Qd3 {[%emt 0:00:43]} e6 {[%emt 0:00:48]} 7. g4 {[%emt 0:01:46]} Nxg4 {[%emt 0:06:13]} 8. Rg1 {[%emt 0:00:35] Black is slightly better.} Ne5 {[%emt 0:04:51]} (8... Nxh2 $2 {loses.} 9. Be2 $18) 9. Qg3 {[%emt 0:01:53]} b5 {[%emt 0:08:51][%cal Bb7b5,Bb5b4][%mdl 32]} 10. Bg5 {[%emt 0:10:07]} Qc7 {[%emt 0:06:48]} 11. O-O-O {[%emt 0:12:32]} b4 {[%emt 0:11:09]} 12. f4 $2 {[%emt 0:15:36] [#] White does not recover from this.} (12. Nce2 $15) 12... h6 $1 $19 {[%emt 0:28:17]} 13. fxe5 {[%emt 0:17:58][%cal Oc3b5]} hxg5 {[%emt 0:00:12]} 14. Nb1 {[%emt 0:15:39]} dxe5 {[%emt 0:02:54]} 15. Nd2 {[%emt 0:00:50]} Bc5 {[%emt 0:05:27]} 16. N2b3 {[%emt 0:00:39]} (16. Nc4 {was worth a try.}) 16... Bb6 {[%emt 0:01:39]} ({Weaker is} 16... Bxd4 17. Rxd4 Nc6 18. Rc4 $19) 17. Bb5+ {[%emt 0:04:52]} Bd7 {[%emt 0:06:41] Black is clearly winning.} (17... axb5 18. Nxb5 Qc6 19. Nd6+ Kf8 20. Qxg5 $15) 18. Bxd7+ {[%emt 0:06:50]} Nxd7 {[%emt 0:00:09]} 19. Nf3 {[%emt 0:01:19]} Bxg1 {[%emt 0:00:32]} 20. Qxg1 {[%emt 0:00:02]} a5 {[%emt 0:07:59] [#] Strongly threatening ...a4.} 21. Nxg5 {[%emt 0:01:14]} Nf6 {[%emt 0:02:44]} 22. Rd2 {[%emt 0:03:08]} Rh5 {[%emt 0:01:51]} 23. Nf3 {[%emt 0:00:35]} Kf8 {[%emt 0:00:34]} 24. Nc5 {[%emt 0:01:33]} Rc8 {[%emt 0:00:51]} 25. Nd3 {[%emt 0:00:04]} Nxe4 {[%emt 0:00:23]} 26. Rg2 {[%emt 0:00:16]} f6 {[%emt 0:01:04]} 27. Re2 {[%emt 0:01:03]} Nc5 {[%emt 0:00:33]} 28. Nde1 {[%emt 0:00:48]} e4 {[%emt 0:00:50]} 29. Nd4 {[%emt 0:00:41]} Qf4+ {[%emt 0:00:39]} 30. Kb1 {[%emt 0:00:07]} Rg5 {[%emt 0:00:07]} 31. Ng2 {[%emt 0:00:29]} e5 {[%emt 0:01:02]} 32. Qd1 {[%emt 0:00:45]} Qg4 {[%emt 0:00:16]} 33. Ne3 {[%emt 0:00:10]} Qd7 {[%emt 0:00:10] Weighted Error Value: White=0.59/Black=0.18 (very precise) .  Loses game:     	White=1     	---        Mistake:       	White=1     	---        Inaccurate:     	White=3     	---        OK:         	White=5     	Black=10     Best:        	---       	Black=1      Strong:       	---       	Black=1} 0-1

[Event "SixDays Budapest GM-B May 2024"]
[Site "Budapest"]
[Date "2024.05.17"]
[Round "3.2"]
[White "Horvath, Adam"]
[Black "Lamard, Guillaume"]
[Result "0-1"]
[ECO "B50"]
[WhiteElo "2448"]
[BlackElo "2504"]
[Annotator "TA"]
[PlyCount "154"]
[EventDate "2024.05.15"]
[EventType "tourn"]
[EventCountry "HUN"]
[SourceTitle "playchess.com"]
[Source "ChessBase"]
[SourceQuality "1"]
[TimeControl "40/5400+30:1800+30"]

{[%evp 49,154,0,-6,-2,0,0,0,0,22,0,0,0,0,0,0,0,0,0,0,0,0,0,0,-12,-12,-12,-12,-12,-12,-12,-12,-12,-12,-12,-12,-12,-12,-12,-12,-26,-26,-68,-68,-78,-77,-78,-81,-74,-80,-81,-82,-95,-101,-95,-107,-108,-147,-154,-154,-412,-406,-406,-406,-444,-406,-406,-406,-398,-398,-558,-391,-354,-353,-570,-562,-562,-562,-868,-854,-687,-613,-600,-540,-6379,-5695,-6079,-5685,-5193,-1918,-6091,-6079,-5716,-5635,-2628,-1333,-4602,-1924,-29977,-29975,-29982,-29983,-29981,-29982,-29985,-29986,-29988,-29989]} 1. e4 {[%emt 0:00:17]} c5 {[%emt 0:00:03]} 2. Nf3 {[%emt 0:00:19]} d6 {[%emt 0:00:04]} 3. Nc3 {[%emt 0:00:06]} Nf6 {[%emt 0:00:11]} 4. d4 {[%emt 0:00:13]} cxd4 {[%emt 0:00:04]} 5. Qxd4 {[%emt 0:00:04]} Nc6 {[%emt 0:00:23]} 6. Qe3 {[%emt 0:00:19]} g6 {[%emt 0:00:06]} 7. h3 {[%emt 0:00:11]} Bg7 {[%emt 0:00:05]} 8. Bc4 {[%emt 0:00:04]} O-O {[%emt 0:00:19]} 9. O-O {[%emt 0:00:04]} b6 {[%emt 0:05:24]} 10. Rd1 {[%emt 0:03:25]} Nd7 {[%emt 0:01:58]} 11. Qf4 {[%emt 0:05:32]} Bb7 {[%emt 0:08:39]} 12. Qh4 {[%emt 0:01:58]} Nce5 {[%emt 0:05:11]} 13. Nxe5 {[%emt 0:03:25]} Nxe5 {[%emt 0:00:46]} 14. Bb3 {[%emt 0:03:23]} Bf6 {[%emt 0:06:04]} 15. Bg5 {[%emt 0:36:05]} Bxg5 {[%emt 0:00:28]} 16. Qxg5 {[%emt 0:00:05]} Rc8 {[%emt 0:01:09]} 17. Rd4 {[%emt 0:00:32]} Kg7 {[%emt 0:09:13]} 18. Rad1 {[%emt 0:01:55]} Rc5 {[%emt 0:01:37]} 19. Qg3 {[%emt 0:05:01]} Qc8 {[%emt 0:01:36]} 20. Nd5 {[%emt 0:01:12]} Re8 {[%emt 0:08:30]} 21. Ne3 {[%emt 0:10:18]} b5 {[%emt 0:00:37]} 22. Bd5 {[%emt 0:05:50]} f6 {[%emt 0:12:57]} 23. h4 {[%emt 0:06:12]} Bxd5 {[%emt 0:02:44]} 24. exd5 {[%emt 0:01:25]} Nc4 {[%emt 0:02:33]} 25. h5 {[%emt 0:03:18]} Nxe3 {[%emt 0:01:34]} 26. Qxe3 {[%emt 0:01:04]} Qf5 {[%emt 0:05:39]} ({But not} 26... gxh5 27. Re4 Rxc2 28. Rxe7+ Rxe7 29. Qxe7+ Kg6 30. Rd3 (30. Qxd6 Qg4 $14) (30. Qxa7 Rxb2 31. Qa3 Qc2 $11) 30... Rc1+ 31. Kh2 $14) 27. h6+ {[%emt 0:05:40]} Kf8 {[%emt 0:01:21]} 28. c3 {[%emt 0:00:33]} Qh5 {[%emt 0:00:39]} 29. R1d3 {[%emt 0:05:28]} a5 {[%emt 0:06:19]} 30. g4 {[%emt 0:00:41]} Qh4 $1 {[%emt 0:00:44]} 31. Kg2 {[%emt 0:00:28]} g5 {[%emt 0:00:24]} 32. Qe4 {[%emt 0:00:51]} Qxh6 {[%emt 0:00:40]} 33. Rh3 {[%emt 0:00:27]} Qg6 {[%emt 0:00:04]} 34. Rxh7 {[%emt 0:00:29]} Qxe4+ {[%emt 0:00:06]} 35. Rxe4 {[%emt 0:00:03]} Rxd5 {[%emt 0:03:15]} 36. Rh8+ {[%emt 0:00:53]} Kf7 {[%emt 0:00:18]} 37. Rh7+ {[%emt 0:00:04]} Kg6 {[%emt 0:00:50]} 38. Rhxe7 {[%emt 0:00:26]} Rxe7 {[%emt 0:00:07]} 39. Rxe7 {[%emt 0:00:03]} Rd2 {[%emt 0:00:05]} 40. b3 {[%emt 0:00:57]} Rxa2 {[%emt 0:00:14]} 41. Rb7 $1 {[%emt 0:30:04]} Rc2 {[%emt 0:30:21]} 42. Rxb5 {[%emt 0:00:06]} Rxc3 {[%emt 0:00:07]} 43. Rxa5 {[%emt 0:00:05]} Rxb3 {[%emt 0:00:06]} 44. Rd5 {[%emt 0:00:54]} Rb6 {[%emt 0:00:05]} 45. Kf3 {[%emt 0:01:12]} Kf7 {[%emt 0:00:08]} 46. Rd1 {[%emt 0:00:12]} Rb3+ {[%emt 0:00:37]} 47. Kg2 {[%emt 0:00:43]} Ke6 {[%emt 0:00:04]} 48. Re1+ {[%emt 0:00:14]} Kd7 {[%emt 0:00:16]} 49. Rd1 {[%emt 0:00:20]} Rb5 {[%emt 0:00:15]} 50. Ra1 {[%emt 0:00:31]} Ke6 {[%emt 0:01:02]} 51. Ra8 {[%emt 0:00:28]} d5 {[%emt 0:01:54]} 52. Re8+ {[%emt 0:00:43]} Kd7 {[%emt 0:00:38]} 53. Ra8 {[%emt 0:00:11]} Rb4 {[%emt 0:01:08]} 54. f3 $2 {[%emt 0:00:25]} (54. Kf3 $17 {was necessary.}) 54... Rb2+ {[%emt 0:01:24]} 55. Kg3 {[%emt 0:00:45]} Rc2 $1 {[%emt 0:02:43]} 56. Ra7+ {[%emt 0:01:23]} Kd6 {[%emt 0:00:23]} 57. Rf7 {[%emt 0:00:50]} Ke6 $1 {[%emt 0:00:15]} 58. Rf8 {[%emt 0:00:04]} Rc6 {[%emt 0:05:26]} 59. Re8+ {[%emt 0:00:24]} (59. Ra8 {is the only way for White.} d4 60. Ra5) 59... Kd7 {[%emt 0:00:14]} 60. Ra8 {[%emt 0:00:14]} Kd6 {[%emt 0:00:45]} 61. Rf8 $2 {[%emt 0:01:17]} (61. Ra5 {keeps fighting.} Rc5 62. Ra8) 61... Ke5 $1 $19 {[%emt 0:00:20]} 62. Re8+ {[%emt 0:00:28]} Kd4 {[%emt 0:00:04]} 63. Re1 {[%emt 0:00:32]} Rd6 {[%emt 0:01:26]} 64. Kf2 {[%emt 0:00:15]} Kc3 {[%emt 0:01:04]} 65. Re3+ {[%emt 0:00:15]} Kc4 {[%emt 0:00:19]} 66. Ra3 {[%emt 0:01:00] [#]} Re6 $1 {[%emt 0:01:32]} (66... d4 67. Ke2 $17) 67. Ra4+ {[%emt 0:00:24]} Kc3 {[%emt 0:00:04]} 68. Ra3+ {[%emt 0:00:34] [#]} Kb4 $1 {[%emt 0:00:09]} 69. Ra8 {[%emt 0:00:12]} d4 {[%emt 0:00:21]} 70. Rd8 {[%emt 0:00:25]} Kc3 {[%emt 0:00:04]} 71. f4 {[%emt 0:00:05]} Re4 {[%emt 0:01:09]} 72. fxg5 {[%emt 0:00:28]} fxg5 {[%emt 0:00:04]} ({Not} 72... Rxg4 73. gxf6 Rf4+ 74. Ke2 $11) 73. Rc8+ {[%emt 0:00:34]} Kd2 {[%emt 0:01:16]} 74. Kf3 {[%emt 0:00:05]} Rf4+ {[%emt 0:01:33]} 75. Kg3 {[%emt 0:00:04]} Ke3 {[%emt 0:00:05]} 76. Rg8 {[%emt 0:01:31]} d3 {[%emt 0:00:09]} 77. Rxg5 {[%emt 0:01:09]} d2 {[%emt 0:00:06]} 0-1

[Event "SixDays Budapest GM-B May 2024"]
[Site "Budapest"]
[Date "2024.05.17"]
[Round "3.3"]
[White "Lu, Maximillian"]
[Black "Krishnan, Ritvik"]
[Result "1-0"]
[ECO "A30"]
[WhiteElo "2373"]
[BlackElo "2298"]
[Annotator "RC"]
[PlyCount "75"]
[EventDate "2024.05.15"]
[EventType "tourn"]
[EventCountry "HUN"]
[SourceTitle "playchess.com"]
[Source "ChessBase"]
[SourceQuality "1"]
[TimeControl "40/5400+30:1800+30"]

1. c4 {[%emt 0:00:06]} c5 {[%emt 0:00:19]} 2. Nf3 {[%emt 0:00:10]} Nc6 {[%emt 0:00:02]} 3. Nc3 {[%emt 0:00:08]} g6 {[%emt 0:00:04]} 4. e3 {[%emt 0:00:02]} Nf6 {[%emt 0:00:04]} 5. d4 {[%emt 0:00:04]} cxd4 {[%emt 0:00:03]} 6. exd4 {[%emt 0:00:03]} d5 {[%emt 0:00:05]} 7. cxd5 {[%emt 0:00:09]} Nxd5 {[%emt 0:00:03]} 8. Qb3 {[%emt 0:00:04]} Nxc3 {[%emt 0:00:03]} 9. Bc4 {[%emt 0:00:08]} Nd5 {[%emt 0:00:03]} 10. Bxd5 {[%emt 0:00:06]} e6 {[%emt 0:00:02]} 11. Bxc6+ {[%emt 0:00:11]} bxc6 {[%emt 0:00:03]} 12. O-O {[%emt 0:00:03]} Qd5 {[%emt 0:00:04]} 13. Qc2 {[%emt 0:00:40]} f6 {[%emt 0:01:03]} 14. Re1 {[%emt 0:00:31]} Kf7 {[%emt 0:01:57]} 15. Bd2 {[%emt 0:00:23]} Be7 {[%emt 0:02:57]} 16. b4 {[%emt 0:02:58]} g5 {[%emt 0:03:59]} 17. Bc3 {[%emt 0:05:21]} Bb7 {[%emt 0:03:32]} 18. Re3 {[%emt 0:03:04]} Rae8 {[%emt 0:09:05]} 19. Qe2 {[%emt 0:06:52]} h5 {[%emt 0:22:15]} 20. Rd1 {[%emt 0:25:01]} h4 {[%emt 0:06:48]} 21. h3 {[%emt 0:07:07]} Reg8 {[%emt 0:09:31]} 22. a4 {[%emt 0:08:03]} g4 {[%emt 0:17:06]} 23. hxg4 {[%emt 0:06:55]} h3 {[%emt 0:02:50]} 24. gxh3 {[%emt 0:18:37]} Qh5 {[%emt 0:02:16]} 25. Nh2 {[%emt 0:05:39]} Bd6 {[%emt 0:01:06]} 26. Qf3 {[%emt 0:00:21]} Bxh2+ {[%emt 0:04:17]} 27. Kxh2 {[%emt 0:00:01]} Qxg4 {[%emt 0:01:12]} 28. d5 {[%emt 0:03:55]} cxd5 {[%emt 0:05:29]} 29. Qxf6+ {[%emt 0:00:19]} Ke8 {[%emt 0:00:01]} 30. Qxe6+ {[%emt 0:02:48]} Qxe6 {[%emt 0:00:04]} 31. Rxe6+ {[%emt 0:00:01]} Kd7 {[%emt 0:00:18]} 32. Re3 {[%emt 0:02:46]} Rh4 {[%emt 0:00:33]} 33. Rd4 {[%emt 0:00:18]} Rh7 {[%emt 0:00:46]} 34. Rf4 {[%emt 0:00:39]} Kc8 {[%emt 0:01:14]} 35. Bd4 {[%emt 0:00:04]} a6 {[%emt 0:00:24]} 36. b5 {[%emt 0:00:04]} axb5 {[%emt 0:00:35]} 37. axb5 {[%emt 0:00:01]} Rh6 {[%emt 0:00:43]} 38. h4 {[%emt 0:00:18]} 1-0

[Event "SixDays Budapest GM-B May 2024"]
[Site "Budapest"]
[Date "2024.05.17"]
[Round "3.4"]
[White "Fodor, Tamas Jr."]
[Black "Palczert, Matyas"]
[Result "1-0"]
[ECO "D85"]
[WhiteElo "2486"]
[BlackElo "2333"]
[Annotator "TA"]
[PlyCount "79"]
[EventDate "2024.05.15"]
[EventType "tourn"]
[EventCountry "HUN"]
[SourceTitle "playchess.com"]
[Source "ChessBase"]
[SourceQuality "1"]
[TimeControl "40/5400+30:1800+30"]

{[%evp 21,79,2,24,22,22,0,31,-23,12,18,58,47,55,0,31,26,41,55,12,7,23,15,83,60,85,82,83,74,80,72,151,124,129,136,166,161,175,162,172,168,198,198,240,247,350,283,361,320,391,370,662,641,662,653,729,688,1060,998,29976,29976]} 1. d4 {[%emt 0:00:08]} Nf6 {[%emt 0:00:30]} 2. c4 {[%emt 0:00:06]} g6 {[%emt 0:00:34]} 3. Nc3 {[%emt 0:00:30]} d5 {[%emt 0:00:10]} 4. cxd5 {[%emt 0:01:35]} Nxd5 {[%emt 0:00:09]} 5. e4 {[%emt 0:00:07]} Nxc3 {[%emt 0:00:06]} 6. bxc3 {[%emt 0:00:03]} Bg7 {[%emt 0:00:09]} 7. Bb5+ {[%emt 0:00:13]} c6 {[%emt 0:00:28]} 8. Ba4 {[%emt 0:00:04]} O-O {[%emt 0:02:28]} 9. Ne2 {[%emt 0:01:51]} b5 {[%emt 0:01:41]} 10. Bb3 {[%emt 0:00:58]} Bb7 {[%emt 0:04:38]} 11. O-O {[%emt 0:05:28]} Nd7 {[%emt 0:01:46]} 12. Be3 {[%emt 0:01:03]} e6 {[%emt 0:02:55][%cal Oc6c5]} 13. Rb1 {[%emt 0:07:34]} a5 {[%emt 0:08:41]} 14. Qc1 {[%emt 0:09:17]} (14. Bc2 $14) 14... Ba6 {[%emt 0:04:48]} 15. Rd1 {[%emt 0:02:30]} Nb6 {[%emt 0:09:55]} 16. Bh6 {[%emt 0:03:00]} Qe7 {[%emt 0:09:10]} 17. Ng3 {[%emt 0:06:23]} (17. Rd3 $14) 17... a4 {[%emt 0:04:31][%cal Og7h6] White must now prevent ...Bxh6!} 18. Bc2 {[%emt 0:00:22][%cal Bb3c2,Bc2d3,Bd3c4][%mdl 32]} e5 {[%emt 0:02:04]} 19. Bxg7 {[%emt 0:04:42]} Kxg7 {[%emt 0:00:07]} 20. f4 {[%emt 0:00:04]} exd4 {[%emt 0:04:59]} (20... exf4 {keeps more tension.} 21. Qxf4 Bc8 22. Bd3 Be6) 21. cxd4 {[%emt 0:00:05]} Nc4 {[%emt 0:01:09]} (21... c5 $11 {keeps the balance.}) 22. Bd3 $16 {[%emt 0:01:35] Black is now going downhill.} Qa3 {[%emt 0:05:52]} 23. Bxc4 {[%emt 0:04:01]} Qxc1 {[%emt 0:00:26]} 24. Rdxc1 {[%emt 0:00:05]} (24. Rbxc1 bxc4 25. Ne2 Rfb8 $11) 24... bxc4 {[%emt 0:00:07]} 25. Kf2 $36 {[%emt 0:01:32][%mdl 2048] White has strong initiative.} Rad8 {[%emt 0:07:25]} ({Black should play} 25... f5) 26. Rb6 {[%emt 0:04:11]} Bb5 {[%emt 0:01:13] [#]} 27. d5 {[%emt 0:00:06][%cal Bd4d5,Bd5d6][%mdl 544] White is more active.} Rb8 {[%emt 0:01:12]} 28. Rxb8 {[%emt 0:01:01]} Rxb8 $18 {[%emt 0:00:10][%mdl 4096] Endgame. [#] KRB-KRN} 29. d6 {[%emt 0:00:32]} f6 {[%emt 0:03:20]} 30. Ke3 {[%emt 0:07:57] e5 is the strong threat.} Kf7 {[%emt 0:03:29]} 31. Kd4 {[%emt 0:03:22] And now e5 would win.} Ke6 {[%emt 0:00:43]} 32. Kc5 {[%emt 0:04:20]} Kd7 {[%emt 0:04:56] [#]} (32... c3 {keeps fighting.} 33. e5 (33. Rxc3 Ba6 $18) 33... f5) 33. Ne2 $1 {[%emt 0:02:58] Threatens to win with Nd4.} Re8 {[%emt 0:01:51]} 34. Nc3 {[%emt 0:00:06]} g5 {[%emt 0:01:02]} 35. g3 {[%emt 0:00:05][%cal Bg2g3,Bg3f4][%mdl 32]} gxf4 $2 {[%emt 0:00:15]} (35... Re6 36. Rd1 h6) 36. gxf4 {[%emt 0:00:06]} Rg8 {[%emt 0:00:21] Inhibits Rg1.} 37. Re1 {[%emt 0:01:35]} Rg6 {[%emt 0:00:38]} 38. Re3 {[%emt 0:00:50]} Rg4 {[%emt 0:00:58]} 39. Rh3 {[%emt 0:01:06]} (39. e5 fxe5 40. fxe5 Rg5) 39... Rxf4 {[%emt 0:01:31]} 40. Rxh7+ {[%emt 0:00:16] Weighted Error Value: White=0.10 (very precise) /Black=0.59.  Mistake:       	White=2     	Black=4      Inaccurate:     	---       	Black=4      OK:         	White=11    	Black=6      Best:        	---       	Black=3      Strong:       	White=1     	---} 1-0

[Event "SixDays Budapest GM-B May 2024"]
[Site "Budapest"]
[Date "2024.05.17"]
[Round "3.5"]
[White "Kuru, Atilla"]
[Black "Stefansson, Vignir Vatnar"]
[Result "0-1"]
[ECO "C03"]
[WhiteElo "2313"]
[BlackElo "2463"]
[Annotator "TA"]
[PlyCount "112"]
[EventDate "2024.05.15"]
[EventType "tourn"]
[EventCountry "HUN"]
[SourceTitle "playchess.com"]
[Source "ChessBase"]
[SourceQuality "1"]
[TimeControl "40/5400+30:1800+30"]

{[%evp 15,112,11,10,6,26,15,17,-3,-17,-20,-15,-23,-22,-18,-22,-39,-54,-35,-55,-43,-16,-110,-104,-106,-92,-150,-147,-149,-153,-149,-146,-129,-147,-166,-163,-163,-154,-184,-193,-207,-152,-157,-157,-227,-143,-203,-208,-214,-200,-226,-207,-346,-214,-214,-168,-169,-172,-172,-85,-186,-175,-364,-365,-399,-405,-409,-410,-430,-401,-460,-431,-460,-414,-458,-778,-729,-729,-591,-521,-521,-358,-978,-824,-2179,-1895,-29971,-29972,-29974,-29976,-29976,-29977,-29977,-29978,-29980,-29980,-29980,-29981,-29980,-29980]} 1. e4 {[%emt 0:21:10]} e6 {[%emt 0:00:45]} 2. d4 {[%emt 0:00:24]} d5 {[%emt 0:00:09]} 3. Nd2 {[%emt 0:00:04]} Be7 {[%emt 0:01:07]} 4. Bd3 {[%emt 0:03:47]} c5 {[%emt 0:00:18]} 5. dxc5 {[%emt 0:01:13]} Nf6 {[%emt 0:00:10]} 6. exd5 {[%emt 0:00:48]} exd5 {[%emt 0:04:25]} 7. Ngf3 {[%emt 0:01:20]} O-O {[%emt 0:00:15]} 8. O-O {[%emt 0:02:16]} Bxc5 {[%emt 0:00:17]} 9. h3 $1 {[%emt 0:03:48]} Nc6 {[%emt 0:01:18]} 10. Nb3 {[%emt 0:01:43]} Bb6 {[%emt 0:00:34]} 11. Bf4 {[%emt 0:00:18] Against Qc7. The position is equal.} Ne4 {[%emt 0:00:46]} 12. Bxe4 {[%emt 0:09:22]} (12. c4 {is more complex.} Be6 13. c5 Bxc5 14. Bxe4 dxe4 15. Nxc5 Qxd1 16. Rfxd1 exf3 17. gxf3 Bxh3 18. Nxb7 f6 19. Kh2) 12... dxe4 {[%emt 0:00:09]} 13. Qxd8 {[%emt 0:00:15]} Rxd8 {[%emt 0:03:26]} ({Of course not} 13... Bxd8 14. Nfd4 $11) 14. Nfd2 {[%emt 0:01:18]} Be6 {[%emt 0:01:09]} 15. Nxe4 {[%emt 0:04:05]} Nd4 {[%emt 0:05:31] Strongly threatening ...Ne2+.} 16. Kh2 {[%emt 0:11:49]} Nxc2 {[%emt 0:03:59]} 17. Rad1 {[%emt 0:00:30]} Bd5 {[%emt 0:15:53]} 18. Nc3 {[%emt 0:03:12]} (18. Nd6 $1 $11 Nb4 19. Kg1) 18... Bc4 $36 {[%emt 0:02:29][%mdl 2048] Black is in control. A strong pair of Bishops.} 19. Rxd8+ {[%emt 0:00:15]} Rxd8 {[%emt 0:00:04]} 20. Rc1 {[%emt 0:08:16]} ({Better is} 20. Rd1) 20... Nb4 {[%emt 0:00:13]} 21. Be3 {[%emt 0:07:28]} Bxe3 {[%emt 0:02:55]} 22. fxe3 {[%emt 0:00:02] [#]} Nxa2 $1 {[%emt 0:02:06][%mdl 512] Black is more active.} 23. Nxa2 {[%emt 0:00:03]} Bxb3 {[%emt 0:00:07][%mdl 4096] Endgame. KRB-KRN} 24. Nb4 {[%emt 0:00:05]} h5 {[%emt 0:00:29]} 25. Rc3 {[%emt 0:01:53]} Be6 {[%emt 0:00:25]} 26. Nd3 {[%emt 0:00:56] [#]} Bf5 $1 {[%emt 0:00:21]} 27. Nf4 {[%emt 0:01:33]} g6 {[%emt 0:00:17]} 28. Rc4 {[%emt 0:00:48]} Rd2 {[%emt 0:01:39]} 29. b4 {[%emt 0:01:14]} (29. Rb4 $17) 29... Rb2 {[%emt 0:00:15]} 30. Kg3 {[%emt 0:00:26]} (30. Rd4 $17 {was worth a try.}) 30... Bd7 $19 {[%emt 0:01:00]} 31. e4 {[%emt 0:06:57]} Bc6 {[%emt 0:01:51]} 32. Rd4 {[%emt 0:01:57]} Kg7 {[%emt 0:00:28]} 33. e5 {[%emt 0:00:56]} (33. Nd5 $142) 33... Kf8 {[%emt 0:05:05]} 34. Kh4 {[%emt 0:06:45]} Bxg2 {[%emt 0:01:32]} 35. e6 {[%emt 0:00:05]} Bc6 {[%emt 0:00:47]} 36. Kg5 {[%emt 0:00:36] Intending Kf6 and mate.} Ke7 {[%emt 0:00:46]} (36... Kg7 $19 {...f6+ would now be deadly.} 37. exf7 Kxf7) 37. exf7 {[%emt 0:00:38]} (37. Kh6 $17) 37... Kxf7 {[%emt 0:00:05]} 38. Rd6 $2 {[%emt 0:00:20]} (38. Kh6 {keeps fighting.}) 38... Rxb4 {[%emt 0:03:53]} 39. Rf6+ {[%emt 0:00:45]} Ke8 {[%emt 0:00:10]} 40. Rxg6 a5 {[%emt 0:00:19]} 41. Nxh5 {[%emt 0:30:59]} Rb5+ {[%emt 0:30:21]} 42. Kh6 {[%emt 0:00:17]} a4 {[%emt 0:00:23] Hoping for ...a3.} 43. Nf4 {[%emt 0:00:48]} Ra5 {[%emt 0:00:57] Threatens to win with ...a3.} 44. Kg7 {[%emt 0:00:30]} a3 {[%emt 0:00:56]} 45. Rg1 {[%emt 0:00:09]} a2 {[%emt 0:00:36]} 46. Ra1 {[%emt 0:00:02]} b5 {[%emt 0:00:35] And now ...b4 would win.} 47. Nd3 {[%emt 0:01:16]} Be4 {[%emt 0:00:31]} 48. Nc1 {[%emt 0:00:30]} (48. Nb4 Bb1 49. Nd5) 48... Bd5 {[%emt 0:01:30]} 49. h4 {[%emt 0:00:13]} b4 {[%emt 0:00:10] White must now prevent ...b3.} 50. Nxa2 {[%emt 0:00:43]} Rxa2 {[%emt 0:01:03] KRB-KR. Black mates.} 51. Re1+ {[%emt 0:00:07]} Kd7 {[%emt 0:00:07]} 52. h5 {[%emt 0:00:04]} Rg2+ {[%emt 0:00:17]} 53. Kf6 {[%emt 0:00:29]} Rh2 {[%emt 0:00:05]} 54. Rd1 {[%emt 0:00:31]} Rxh5 {[%emt 0:00:19]} 55. Kg6 {[%emt 0:00:01]} Re5 {[%emt 0:00:07]} 56. Kf6 {[%emt 0:00:03]} Kd6 {[%emt 0:00:13] Weighted Error Value: White=0.51/Black=0.17 (very precise) .  Mistake:       	White=8     	Black=1      Inaccurate:     	White=1     	Black=4      OK:         	White=12    	Black=19     Best:        	---       	Black=5      Brilliant:      	---       	Black=1} 0-1